fUSD/lending_fUSD_20251206
["ID","MTS","AMOUNT","RATE_DAILY","PERIOD"]
[396565713,1765053044080,-900.12,0.00016438,2]
[396565714,1765053044090,-2229.33,0.00016438,2]
[396565715,1765053044100,-501.02980612,0.00016438,2]
[396565716,1765053044110,-500.0,0.00016438,2]
[396565717,1765053044120,-500.0,0.00016438,2]
[396565718,1765053044130,-281.66687347,0.00016438,2]
[396565719,1765053044140,-518.73877924,0.00016438,2]
[396565720,1765053044150,-500.0,0.00016438,2]
[396565721,1765053044159,-900.71,0.00016438,2]
[396565722,1765053044169,-500.0,0.00016438,2]
[396565723,1765053044179,-2192.27,0.00016438,2]
[396565724,1765053044188,-500.0,0.00016438,2]
[396565725,1765053044198,-500.0,0.00016438,2]
[396565726,1765053044207,-500.0,0.00016438,2]
[396565727,1765053044217,-547.66,0.00016438,2]
[396565728,1765053044226,-500.0,0.00016438,2]
[396565729,1765053044236,-500.0,0.00016438,2]
[396565730,1765053044245,-500.0,0.00016438,2]
[396565731,1765053044254,-1027.71,0.00016438,2]
[396565732,1765053044264,-500.0,0.00016438,2]
[396565733,1765053044273,-1996.86,0.00016438,2]
[396565734,1765053044283,-500.0,0.00016438,2]
[396565735,1765053044292,-500.0,0.00016438,2]
[396565736,1765053044301,-240.55413762,0.00016438,2]
[396565737,1765053044310,-251.41576039,0.00016438,2]
[396565738,1765053044320,-1246.59,0.00016438,2]
[396565739,1765053044329,-500.0,0.00016438,2]
[396565740,1765053044339,-568.52588495,0.00016438,2]
[396565741,1765053044354,-500.0,0.00016438,2]
[396565742,1765053044364,-500.0,0.00016438,2]
[396565743,1765053044373,-500.0,0.00016438,2]
[396565744,1765053044383,-500.0,0.00016438,2]
[396565745,1765053044393,-500.0,0.00016438,2]
[396565746,1765053044404,-500.0,0.00016438,2]
[396565747,1765053044414,-989.5,0.00016438,2]
[396565748,1765053044425,-500.0,0.00016438,2]
[396565749,1765053044435,-500.0,0.00016438,2]
[396565750,1765053044444,-500.0,0.00016438,2]
[396565751,1765053044455,-500.0,0.00016438,2]
[396565752,1765053044465,-2550.27,0.00016438,2]
[396565753,1765053044474,-500.0,0.00016438,2]
[396565754,1765053044485,-500.0,0.00016438,2]
[396565755,1765053044495,-500.0,0.00016438,2]
[396565756,1765053044506,-500.0,0.00016438,2]
[396565757,1765053044518,-500.0,0.00016438,2]
[396565758,1765053044528,-500.0,0.00016438,2]
[396565759,1765053044543,-500.0,0.00016438,2]
[396565760,1765053044555,-500.0,0.00016438,2]
[396565761,1765053044566,-2017.78,0.00016438,2]
[396565762,1765053044577,-500.0,0.00016438,2]
[396565763,1765053044587,-500.0,0.00016438,2]
[396565764,1765053044596,-4054.77,0.00016438,2]
[396565765,1765053044608,-500.0,0.00016438,2]
[396565766,1765053044619,-500.0,0.00016438,2]
[396565767,1765053044630,-3712.83,0.00016438,2]
[396565768,1765053044640,-500.0,0.00016438,2]
[396565769,1765053044651,-500.0,0.00016438,2]
[396565770,1765053044665,-2003.43,0.00016438,2]
[396565771,1765053044675,-2237.39,0.00016438,2]
[396565772,1765053044685,-500.0,0.00016438,2]
[396565773,1765053044696,-500.0,0.00016438,2]
[396565774,1765053044707,-500.0,0.00016438,2]
[396565775,1765053044718,-500.0,0.00016438,2]
[396565776,1765053044728,-538.71749559,0.00016438,2]
[396565777,1765053044742,-500.0,0.00016438,2]
[396565778,1765053044753,-500.0,0.00016438,2]
[396565779,1765053044763,-500.0,0.00016438,2]
[396565780,1765053044773,-1604.07,0.00016438,2]
[396565781,1765053044783,-500.0,0.00016438,2]
[396565782,1765053044794,-656.68,0.00016438,2]
[396565783,1765053044804,-500.0,0.00016438,2]
[396565784,1765053044814,-500.0,0.00016438,2]
[396565785,1765053044824,-500.0,0.00016438,2]
[396565786,1765053044834,-951.06,0.00016438,2]
[396565787,1765053044844,-500.0,0.00016438,2]
[396565788,1765053044853,-500.0,0.00016438,2]
[396565789,1765053044863,-2297.56,0.00016438,2]
[396565790,1765053044873,-2160.85,0.00016438,2]
[396565791,1765053044883,-500.0,0.00016438,2]
[396565792,1765053044893,-500.0,0.00016438,2]
[396565793,1765053044903,-6368.21,0.00016438,2]
[396565794,1765053044912,-2106.9,0.00016438,2]
[396565795,1765053044922,-500.0,0.00016438,2]
[396565796,1765053044936,-968.1,0.00016438,2]
[396565797,1765053044946,-573.04,0.00016438,2]
[396565798,1765053044955,-7410.18,0.00016438,2]
[396565799,1765053044965,-503.94744766,0.00016438,2]
[396565800,1765053044975,-500.0,0.00016438,2]
[396565801,1765053044985,-500.0,0.00016438,2]
[396565802,1765053044994,-863.26,0.00016438,2]
[396565803,1765053045003,-500.0,0.00016438,2]
[396565804,1765053045014,-500.0,0.00016438,2]
[396565805,1765053045024,-500.0,0.00016438,2]
[396565806,1765053045034,-1734.77,0.00016438,2]
[396565807,1765053045044,-500.0,0.00016438,2]
[396565808,1765053045054,-511.53,0.00016438,2]
[396565809,1765053045063,-1629.82,0.00016438,2]
[396565810,1765053045073,-1848.11,0.00016438,2]
[396565811,1765053045082,-500.0,0.00016438,2]
[396565812,1765053045092,-2485.09,0.00016438,2]
[396565813,1765053045102,-500.0,0.00016438,2]
[396565814,1765053045115,-1828.52,0.00016438,2]
[396565815,1765053045128,-500.0,0.00016438,2]
[396565816,1765053045138,-500.0,0.00016438,2]
[396565817,1765053045147,-2016.56,0.00016438,2]
[396565818,1765053045157,-2140.41,0.00016438,2]
[396565819,1765053045169,-500.0,0.00016438,2]
[396565820,1765053045178,-500.0,0.00016438,2]
[396565821,1765053045188,-1827.81,0.00016438,2]
[396565822,1765053045199,-500.0,0.00016438,2]
[396565823,1765053045208,-1053.63,0.00016438,2]
[396565824,1765053045219,-500.0,0.00016438,2]
[396565825,1765053045229,-268.4710365,0.00016438,2]
[396565826,1765053045238,-500.0,0.00016438,2]
[396565827,1765053045249,-1000.0,0.00016438,2]
[396565828,1765053045259,-1928.15,0.00016438,2]
[396565829,1765053045271,-500.0,0.00016438,2]
[396565830,1765053045282,-2019.67,0.00016438,2]
[396565831,1765053045296,-635.3,0.00016438,2]
[396565832,1765053045307,-3251.73,0.00016438,2]
[396565833,1765053045318,-1065.92,0.00016438,2]
[396565834,1765053045331,-500.0,0.00016438,2]
[396565835,1765053045340,-500.0,0.00016438,2]
[396565836,1765053045350,-500.0,0.00016438,2]
[396565837,1765053045360,-578.35,0.00016438,2]
[396565838,1765053045370,-1880.2,0.00016438,2]
[396565839,1765053045380,-500.0,0.00016438,2]
[396565840,1765053045389,-7856.9,0.00016438,2]
[396565841,1765053045400,-500.0,0.00016438,2]
[396565842,1765053045409,-500.0,0.00016438,2]
[396565843,1765053045419,-500.0,0.00016438,2]
[396565844,1765053045429,-685.82,0.00016438,2]
[396565845,1765053045438,-500.0,0.00016438,2]
[396565846,1765053045450,-1644.07,0.00016438,2]
[396565847,1765053045460,-2248.33,0.00016438,2]
[396565848,1765053045470,-2331.37,0.00016438,2]
[396565849,1765053045479,-500.0,0.00016438,2]
[396565850,1765053045489,-1023.38,0.00016438,2]
[396565851,1765053045498,-500.0,0.00016438,2]
[396565852,1765053045507,-500.0,0.00016438,2]
[396565853,1765053045517,-500.0,0.00016438,2]
[396565854,1765053045528,-500.0,0.00016438,2]
[396565855,1765053045538,-500.0,0.00016438,2]
[396565856,1765053045548,-666.63,0.00016438,2]
[396565857,1765053045558,-766.45,0.00016438,2]
[396565858,1765053045567,-543.17,0.00016438,2]
[396565859,1765053045576,-500.0,0.00016438,2]
[396565860,1765053045586,-537.76,0.00016438,2]
[396565861,1765053045596,-500.0,0.00016438,2]
[396565862,1765053045605,-1965.06,0.00016438,2]
[396565863,1765053045615,-500.0,0.00016438,2]
[396565864,1765053045625,-500.0,0.00016438,2]
[396565865,1765053045634,-2173.4,0.00016438,2]
[396565866,1765053045644,-500.0,0.00016438,2]
[396565867,1765053045655,-300.0,0.00016438,2]
[396565868,1765053045667,-500.0,0.00016438,2]
[396565869,1765053045677,-2624.62,0.00016438,2]
[396565870,1765053045687,-500.0,0.00016438,2]
[396565871,1765053045696,-500.0,0.00016438,2]
[396565872,1765053045718,-1091.85,0.00016438,2]
[396565873,1765053045729,-1957.3,0.00016438,2]
[396565874,1765053045739,-500.0,0.00016438,2]
[396565875,1765053045749,-500.0,0.00016438,2]
[396565876,1765053045760,-500.0,0.00016438,2]
[396565877,1765053045771,-500.0,0.00016438,2]
[396565878,1765053045781,-1403.68,0.00016438,2]
[396565879,1765053045792,-2040.8,0.00016438,2]
[396565880,1765053045803,-500.0,0.00016438,2]
[396565881,1765053045814,-500.0,0.00016438,2]
[396565882,1765053045824,-500.0,0.00016438,2]
[396565883,1765053045834,-500.0,0.00016438,2]
[396565884,1765053045846,-500.0,0.00016438,2]
[396565885,1765053045856,-500.0,0.00016438,2]
[396565886,1765053045866,-7284.63,0.00016438,2]
[396565887,1765053045876,-516.58,0.00016438,2]
[396565888,1765053045887,-500.0,0.00016438,2]
[396565889,1765053045896,-500.0,0.00016438,2]
[396565890,1765053045906,-2119.63,0.00016438,2]
[396565891,1765053045916,-500.0,0.00016438,2]
[396565892,1765053045926,-500.0,0.00016438,2]
[396565893,1765053045936,-500.0,0.00016438,2]
[396565894,1765053045946,-261.01151653,0.00016438,2]
[396565895,1765053045956,-910.53,0.00016438,2]
[396565896,1765053045967,-500.0,0.00016438,2]
[396565897,1765053045977,-713.28,0.00016438,2]
[396565898,1765053045988,-580.24,0.00016438,2]
[396565899,1765053045998,-500.0,0.00016438,2]
[396565900,1765053046008,-549.29,0.00016438,2]
[396565901,1765053046018,-500.0,0.00016438,2]
[396565902,1765053046028,-2523.07,0.00016438,2]
[396565903,1765053046038,-500.0,0.00016438,2]
[396565904,1765053046049,-500.0,0.00016438,2]
[396565905,1765053046059,-658.41,0.00016438,2]
[396565906,1765053046069,-697.4,0.00016438,2]
[396565907,1765053046079,-1957.56,0.00016438,2]
[396565908,1765053046089,-500.0,0.00016438,2]
[396565909,1765053046099,-503.18398464,0.00016438,2]
[396565910,1765053046109,-500.0,0.00016438,2]
[396565911,1765053046118,-2999.43,0.00016438,2]
[396565912,1765053046128,-500.0,0.00016438,2]
[396565913,1765053046137,-500.0,0.00016438,2]
[396565914,1765053046147,-500.0,0.00016438,2]
[396565915,1765053046156,-500.0,0.00016438,2]
[396565916,1765053046166,-500.0,0.00016438,2]
[396565917,1765053046175,-2568.6,0.00016438,2]
[396565918,1765053046185,-2191.55,0.00016438,2]
[396565919,1765053046195,-500.0,0.00016438,2]
[396565920,1765053046204,-500.0,0.00016438,2]
[396565921,1765053046213,-500.0,0.00016438,2]
[396565922,1765053046223,-500.0,0.00016438,2]
[396565923,1765053046233,-500.0,0.00016438,2]
[396565924,1765053046242,-500.0,0.00016438,2]
[396565925,1765053046255,-500.0,0.00016438,2]
[396565926,1765053046265,-2099.28,0.00016438,2]
[396565927,1765053046275,-500.0,0.00016438,2]
[396565928,1765053046285,-1680.01,0.00016438,2]
[396565930,1765053046294,-500.0,0.00016438,2]
[396565931,1765053046304,-571.24,0.00016438,2]
[396565932,1765053046314,-743.08,0.00016438,2]
[396565933,1765053046324,-531.91,0.00016438,2]
[396565934,1765053046334,-500.0,0.00016438,2]
[396565935,1765053046345,-500.0,0.00016438,2]
[396565936,1765053046355,-500.0,0.00016438,2]
[396565937,1765053046364,-500.0,0.00016438,2]
[396565938,1765053046374,-500.0,0.00016438,2]
[396565939,1765053046384,-500.0,0.00016438,2]
[396565940,1765053046395,-500.0,0.00016438,2]
[396565941,1765053046405,-500.0,0.00016438,2]
[396565942,1765053046415,-500.0,0.00016438,2]
[396565943,1765053046424,-2021.12,0.00016438,2]
[396565944,1765053046434,-500.0,0.00016438,2]
[396565945,1765053046444,-528.64,0.00016438,2]
[396565946,1765053046454,-500.0,0.00016438,2]
[396565947,1765053046464,-1042.16,0.00016438,2]
[396565948,1765053046474,-2647.61,0.00016438,2]
[396565949,1765053046484,-916.48,0.00016438,2]
[396565950,1765053046493,-1199.58,0.00016438,2]
[396565951,1765053046503,-500.0,0.00016438,2]
[396565952,1765053046681,-500.0,0.00016438,2]
[396565953,1765053046691,-500.0,0.00016438,2]
[396565954,1765053046702,-658.07,0.00016438,2]
[396565955,1765053046713,-1985.01,0.00016438,2]
[396565956,1765053046722,-2136.93,0.00016438,2]
[396565957,1765053046731,-500.0,0.00016438,2]
[396565958,1765053046743,-500.0,0.00016438,2]
[396565959,1765053046753,-500.0,0.00016438,2]
[396565960,1765053046762,-500.0,0.00016438,2]
[396565961,1765053046772,-500.0,0.00016438,2]
[396565962,1765053046784,-550.65,0.00016438,2]
[396565963,1765053046794,-1777.12,0.00016438,2]
[396565964,1765053046803,-1909.25,0.00016438,2]
[396565965,1765053046812,-2016.43,0.00016438,2]
[396565966,1765053046821,-500.0,0.00016438,2]
[396565967,1765053046831,-500.0,0.00016438,2]
[396565968,1765053046840,-546.18,0.00016438,2]
[396565969,1765053046850,-1915.42,0.00016438,2]
[396565970,1765053046860,-1845.64,0.00016438,2]
[396565971,1765053046869,-500.0,0.00016438,2]
[396565972,1765053046879,-1601.87,0.00016438,2]
[396565973,1765053046888,-1581.43,0.00016438,2]
[396565974,1765053046898,-604.39,0.00016438,2]
[396565975,1765053046908,-1825.32,0.00016438,2]
[396565976,1765053046918,-500.0,0.00016438,2]
[396565977,1765053046927,-714.93,0.00016438,2]
[396565978,1765053046936,-500.0,0.00016438,2]
[396565979,1765053046947,-500.0,0.00016438,2]
[396565980,1765053046958,-500.0,0.00016438,2]
[396565981,1765053046967,-2943.9,0.00016438,2]
[396565982,1765053046980,-1584.68,0.00016438,2]
[396565983,1765053046989,-500.0,0.00016438,2]
[396565984,1765053046998,-2096.89,0.00016438,2]
[396565985,1765053047008,-500.0,0.00016438,2]
[396565986,1765053047019,-500.0,0.00016438,2]
[396565987,1765053047028,-628.14803593,0.00016438,2]
[396565988,1765053047038,-1843.68,0.00016438,2]
[396565989,1765053047047,-500.0,0.00016438,2]
[396565990,1765053047057,-500.0,0.00016438,2]
[396565991,1765053047067,-614.16,0.00016438,2]
[396565992,1765053047077,-500.0,0.00016438,2]
[396565993,1765053047087,-281.43883916,0.00016438,2]
[396565994,1765053047096,-552.0,0.00016438,2]
[396565995,1765053047105,-570.21,0.00016438,2]
[396565996,1765053047116,-500.0,0.00016438,2]
[396565997,1765053047126,-500.0,0.00016438,2]
[396565998,1765053047136,-500.0,0.00016438,2]
[396565999,1765053047146,-500.0,0.00016438,2]
[396566000,1765053047155,-1461.5,0.00016438,2]
[396566001,1765053047164,-500.0,0.00016438,2]
[396566002,1765053047178,-500.0,0.00016438,2]
[396566003,1765053047187,-500.0,0.00016438,2]
[396566004,1765053047197,-1129.66,0.00016438,2]
[396566005,1765053047208,-516.13,0.00016438,2]
[396566006,1765053047218,-285.87777108,0.00016438,2]
[396566007,1765053047228,-539.32728333,0.00016438,2]
[396566008,1765053047238,-500.0,0.00016438,2]
[396566009,1765053047247,-500.0,0.00016438,2]
[396566010,1765053047257,-500.0,0.00016438,2]
[396566011,1765053047267,-500.0,0.00016438,2]
[396566012,1765053047277,-500.0,0.00016438,2]
[396566013,1765053047286,-500.0,0.00016438,2]
[396566014,1765053047296,-500.0,0.00016438,2]
[396566015,1765053047305,-500.0,0.00016438,2]
[396566016,1765053047314,-500.0,0.00016438,2]
[396566017,1765053047324,-500.0,0.00016438,2]
[396566018,1765053047334,-556.03099801,0.00016438,2]
[396566019,1765053047343,-949.44,0.00016438,2]
[396566020,1765053047352,-500.0,0.00016438,2]
[396566021,1765053047362,-500.0,0.00016438,2]
[396566022,1765053047373,-518.15223418,0.00016438,2]
[396566023,1765053047383,-168.0,0.00016441,2]
[396566024,1765053047393,-724.46049625,0.00016473,2]
[396566025,1765053047402,-340.33067585,0.00016474,2]
[396566026,1765053047412,-395.75929175,0.00016516,2]
[396566027,1765053047421,-724.46049625,0.00016544,2]
[396566028,1765053047431,-340.33067585,0.0001656,2]
[396566029,1765053047440,-1000.0,0.000166,2]
[396566030,1765053047449,-1259.0,0.00016601,2]
[396566031,1765053047460,-614.0,0.00016601,2]
[396566032,1765053047470,-1195.0,0.00016601,2]
[396566033,1765053047480,-928.395,0.00016601,2]
[396566034,1765053047489,-4707.0,0.00016601,2]
[396566035,1765053047498,-1323.0,0.00016601,2]
[396566036,1765053047508,-253.0,0.00016601,2]
[396566037,1765053047518,-10000.0,0.00016612,2]
[396566038,1765053047527,-724.46049625,0.00016615,2]
[396566039,1765053047539,-340.33067585,0.00016646,2]
[396566040,1765053047549,-724.46049625,0.00016686,2]
[396566041,1765053047558,-1000.0,0.000167,2]
[396566042,1765053047568,-192.74475342,0.00016712,2]
[396566043,1765053047578,-150.683202,0.00016712,2]
[396566044,1765053047588,-150.683202,0.00016712,2]
[396566045,1765053047597,-500.0,0.00016712,2]
[396566046,1765053047607,-500.0,0.00016712,2]
[396566047,1765053047616,-500.0,0.00016712,2]
[396566048,1765053047626,-500.0,0.00016712,2]
[396566049,1765053047636,-1208.77,0.00016712,2]
[396566050,1765053047645,-500.0,0.00016712,2]
[396566051,1765053047656,-500.0,0.00016712,2]
[396566052,1765053047669,-2158.93,0.00016712,2]
[396566053,1765053047678,-632.43746188,0.00016712,2]
[396566054,1765053047687,-500.0,0.00016712,2]
[396566055,1765053047697,-500.0,0.00016712,2]
[396566057,1765053047706,-500.0,0.00016712,2]
[396566059,1765053047716,-500.0,0.00016712,2]
[396566061,1765053047725,-500.0,0.00016712,2]
[396566063,1765053047734,-631.51,0.00016712,2]
[396566065,1765053047744,-556.33355681,0.00016712,2]
[396566067,1765053047753,-511.87311819,0.00016712,2]
[396566070,1765053047768,-500.0,0.00016712,2]
[396566072,1765053047783,-500.0,0.00016712,2]
[396566074,1765053047793,-500.0,0.00016712,2]
[396566076,1765053047803,-500.0,0.00016712,2]
[396566078,1765053047814,-500.0,0.00016712,2]
[396566080,1765053047824,-500.0,0.00016712,2]
[396566083,1765053047835,-500.0,0.00016712,2]
[396566085,1765053047844,-500.0,0.00016712,2]
[396566087,1765053047853,-500.0,0.00016712,2]
[396566089,1765053047863,-500.0,0.00016712,2]
[396566091,1765053047872,-332.35440527,0.00016712,2]
[396566093,1765053047882,-1527.85,0.00016712,2]
[396566095,1765053047891,-1898.37,0.00016712,2]
[396566097,1765053047900,-500.0,0.00016712,2]
[396566099,1765053047909,-500.0,0.00016712,2]
[396566101,1765053047919,-261.43529063,0.00016712,2]
[396566103,1765053047928,-500.0,0.00016712,2]
[396566105,1765053047937,-500.0,0.00016712,2]
[396566107,1765053047947,-500.0,0.00016712,2]
[396566109,1765053047956,-206.19952765,0.00016712,2]
[396566110,1765053047967,-164.171716,0.00016712,2]
[396566111,1765053047976,-285.77082357,0.00016712,2]
[396566112,1765053047985,-500.0,0.00016712,2]
[396566113,1765053047995,-500.0,0.00016712,2]
[396566114,1765053048004,-500.0,0.00016712,2]
[396566115,1765053048014,-500.0,0.00016712,2]
[396566116,1765053048023,-1842.84,0.00016712,2]
[396566117,1765053048033,-1838.45,0.00016712,2]
[396566118,1765053048042,-500.0,0.00016712,2]
[396566119,1765053048051,-500.0,0.00016712,2]
[396566120,1765053048063,-155.519023,0.00016712,2]
[396566121,1765053048072,-500.0,0.00016712,2]
[396566122,1765053048081,-155.519023,0.00016712,2]
[396566123,1765053048090,-183.29203104,0.00016712,2]
[396566124,1765053048100,-155.519023,0.00016712,2]
[396566125,1765053048109,-500.0,0.00016712,2]
[396566126,1765053048118,-155.519023,0.00016712,2]
[396566127,1765053048127,-500.0,0.00016712,2]
[396566128,1765053048136,-500.0,0.00016712,2]
[396566129,1765053048147,-500.0,0.00016712,2]
[396566130,1765053048156,-500.0,0.00016712,2]
[396566131,1765053048165,-500.0,0.00016712,2]
[396566133,1765053048175,-161.09508144,0.00016712,2]
[396566134,1765053048184,-500.0,0.00016712,2]
[396566136,1765053048194,-500.0,0.00016712,2]
[396566138,1765053048203,-500.0,0.00016712,2]
[396566140,1765053048213,-500.0,0.00016712,2]
[396566142,1765053048222,-502.71979708,0.00016712,2]
[396566143,1765053048232,-500.0,0.00016712,2]
[396566144,1765053048242,-500.0,0.00016712,2]
[396566145,1765053048251,-500.0,0.00016712,2]
[396566146,1765053048260,-500.0,0.00016712,2]
[396566147,1765053048270,-500.0,0.00016712,2]
[396566148,1765053048280,-500.0,0.00016712,2]
[396566149,1765053048291,-500.0,0.00016712,2]
[396566150,1765053048301,-1874.67,0.00016712,2]
[396566151,1765053048311,-500.0,0.00016712,2]
[396566152,1765053048322,-500.0,0.00016712,2]
[396566153,1765053048331,-500.0,0.00016712,2]
[396566154,1765053048340,-500.0,0.00016712,2]
[396566155,1765053048350,-1881.31,0.00016712,2]
[396566156,1765053048360,-1115.53,0.00016712,2]
[396566157,1765053048369,-500.0,0.00016712,2]
[396566158,1765053048378,-500.0,0.00016712,2]
[396566159,1765053048388,-533.6,0.00016712,2]
[396566160,1765053048397,-500.0,0.00016712,2]
[396566161,1765053048407,-629.39,0.00016712,2]
[396566162,1765053048417,-500.0,0.00016712,2]
[396566163,1765053048426,-500.0,0.00016712,2]
[396566164,1765053048435,-500.0,0.00016712,2]
[396566165,1765053048446,-500.0,0.00016712,2]
[396566166,1765053048455,-625.78,0.00016712,2]
[396566167,1765053048465,-566.63,0.00016712,2]
[396566168,1765053048474,-1967.84,0.00016712,2]
[396566169,1765053048484,-500.0,0.00016712,2]
[396566170,1765053048495,-500.0,0.00016712,2]
[396566171,1765053048504,-516.78441374,0.00016712,2]
[396566172,1765053048513,-500.0,0.00016712,2]
[396566173,1765053048523,-519.8,0.00016712,2]
[396566174,1765053048533,-518.54,0.00016712,2]
[396566175,1765053048543,-500.0,0.00016712,2]
[396566176,1765053048552,-500.0,0.00016712,2]
[396566177,1765053048561,-500.0,0.00016712,2]
[396566178,1765053048570,-500.0,0.00016712,2]
[396566179,1765053048580,-500.0,0.00016712,2]
[396566180,1765053048590,-500.0,0.00016712,2]
[396566181,1765053048599,-406.32556892,0.00016712,2]
[396566182,1765053048609,-500.0,0.00016712,2]
[396566183,1765053048618,-1712.23,0.00016712,2]
[396566184,1765053048628,-500.0,0.00016712,2]
[396566185,1765053048637,-500.0,0.00016712,2]
[396566186,1765053048647,-500.0,0.00016712,2]
[396566187,1765053048656,-500.0,0.00016712,2]
[396566188,1765053048670,-500.0,0.00016712,2]
[396566189,1765053048679,-500.0,0.00016712,2]
[396566190,1765053048690,-469.65471711,0.00016712,2]
[396566191,1765053048703,-500.0,0.00016712,2]
[396566192,1765053048712,-277.6,0.00016712,2]
[396566193,1765053048723,-500.0,0.00016712,2]
[396566194,1765053048732,-467.55704773,0.00016712,2]
[396566195,1765053048745,-440.32770177,0.00016712,2]
[396566196,1765053048755,-500.0,0.00016712,2]
[396566197,1765053048765,-1868.18,0.00016712,2]
[396566198,1765053048775,-500.0,0.00016712,2]
[396566199,1765053048785,-1774.66,0.00016712,2]
[396566200,1765053048795,-1620.38,0.00016712,2]
[396566201,1765053048804,-500.0,0.00016712,2]
[396566202,1765053048814,-500.0,0.00016712,2]
[396566203,1765053048824,-500.0,0.00016712,2]
[396566204,1765053048833,-500.0,0.00016712,2]
[396566205,1765053048843,-500.0,0.00016712,2]
[396566206,1765053048853,-151.0,0.00016712,2]
[396566207,1765053048862,-500.0,0.00016712,2]
[396566208,1765053048871,-500.0,0.00016712,2]
[396566209,1765053048880,-500.0,0.00016712,2]
[396566210,1765053048890,-500.0,0.00016712,2]
[396566211,1765053048899,-906.74,0.00016712,2]
[396566212,1765053048909,-500.0,0.00016712,2]
[396566213,1765053048918,-500.0,0.00016712,2]
[396566214,1765053048928,-500.0,0.00016712,2]
[396566215,1765053048937,-500.0,0.00016712,2]
[396566216,1765053048946,-500.0,0.00016712,2]
[396566217,1765053048956,-1837.04,0.00016712,2]
[396566218,1765053048965,-500.0,0.00016712,2]
[396566219,1765053048974,-500.0,0.00016712,2]
[396566220,1765053048984,-500.0,0.00016712,2]
[396566221,1765053048993,-500.0,0.00016712,2]
[396566222,1765053049002,-500.0,0.00016712,2]
[396566223,1765053049012,-500.0,0.00016712,2]
[396566224,1765053049021,-500.0,0.00016712,2]
[396566225,1765053049031,-500.0,0.00016712,2]
[396566226,1765053049040,-500.0,0.00016712,2]
[396566227,1765053049050,-1698.25,0.00016712,2]
[396566228,1765053049059,-590.92,0.00016712,2]
[396566229,1765053049069,-500.0,0.00016712,2]
[396566230,1765053049082,-500.0,0.00016712,2]
[396566231,1765053049092,-1545.73,0.00016712,2]
[396566232,1765053049101,-500.0,0.00016712,2]
[396566233,1765053049111,-500.0,0.00016712,2]
[396566234,1765053049121,-500.0,0.00016712,2]
[396566235,1765053049131,-151.0,0.00016712,2]
[396566236,1765053049140,-789.01,0.00016712,2]
[396566237,1765053049149,-153.797533,0.00016712,2]
[396566238,1765053049158,-1781.54,0.00016712,2]
[396566239,1765053049168,-500.0,0.00016712,2]
[396566240,1765053049179,-1898.45,0.00016712,2]
[396566241,1765053049188,-500.0,0.00016712,2]
[396566242,1765053049197,-500.0,0.00016712,2]
[396566243,1765053049206,-595.82523484,0.00016712,2]
[396566244,1765053049215,-718.56,0.00016712,2]
[396566245,1765053049225,-1959.04,0.00016712,2]
[396566246,1765053049234,-984.3,0.00016712,2]